bitfinex-derivatives/quotes_BNBF0:USTF0_20250630
["timestamp","ask_amount","ask_price","bid_price","bid_amount"]
[1751301942240,0.26502574,657.08,656.39,1.07151559]
[1751301942436,0.26502574,657.08,656.4,1.07151559]
[1751301942640,0.26502574,657.08,656.41,1.07151559]
[1751301942840,0.26502574,657.08,656.42,1.07151559]
[1751301943139,0.26502574,657.08,656.43,1.07151559]
[1751301943441,0.26502574,657.08,656.44,1.07151559]
[1751301943742,0.26502574,657.08,656.45,1.07151559]
[1751301943942,0.26502574,657.08,656.46,1.07151559]
[1751301944241,0.26502574,657.08,656.47,1.07151559]
[1751301944537,0.26502574,657.08,656.48,1.07151559]
[1751301944741,0.26502574,657.08,656.49,1.07151559]
[1751301945041,0.26502574,657.08,656.5,1.07151559]
[1751301945238,0.26502574,657.08,656.51,1.07151559]
[1751301945443,0.26502574,657.08,656.32,1.833]
[1751301945642,0.26502574,657.08,656.33,1.07098644]
[1751301945838,0.26502574,657.08,656.34,1.07098644]
[1751301946140,0.26502574,657.08,656.35,1.07098644]
[1751301946344,0.26502574,657.08,656.36,1.07098644]
[1751301946542,0.26502574,657.08,656.37,1.07098644]
[1751301946740,0.26502574,657.08,656.38,1.07098644]
[1751301946939,2.27686326,657.06,656.39,1.07098644]
[1751301947244,2.27686326,657.07,656.4,1.07098644]
[1751301947443,2.27686326,657.07,656.41,1.07098644]
[1751301947740,2.27686326,657.07,656.42,1.07098644]
[1751301947939,2.27686326,657.06,656.43,1.07098644]
[1751301948140,2.27686326,657.07,656.44,1.07098644]
[1751301948341,2.541889,657.08,656.45,1.07098644]
[1751301948541,0.26502574,657.08,656.46,1.07098644]
[1751301948840,0.26502574,657.08,656.47,1.07098644]
[1751301949140,0.26502574,657.08,656.48,1.07098644]
[1751301949445,0.26502574,657.08,656.49,1.07098644]
[1751301949646,0.26502574,657.08,656.5,1.07098644]
[1751301949945,0.26502574,657.08,656.51,1.07098644]
[1751301950144,0.26502574,657.08,656.32,1.833]
[1751301950345,0.26502574,657.08,656.33,1.07064104]
[1751301950542,0.26502574,657.08,656.34,1.07064104]
[1751301950842,0.26502574,657.08,656.35,1.07064104]
[1751301951039,0.26502574,657.08,656.36,1.07064104]
[1751301951244,0.26502574,657.08,656.37,1.07064104]
[1751301951444,0.26502574,657.08,656.38,1.07064104]
[1751301951744,2.27686326,657.07,656.39,1.07064104]
[1751301951944,2.27686326,657.07,656.4,1.07064104]
[1751301952143,2.27686326,657.07,656.41,1.07064104]
[1751301952342,2.27686326,657.07,656.42,1.07064104]
[1751301952643,2.27686326,657.07,656.43,1.07064104]
[1751301952844,2.27686326,657.06,656.44,1.07064104]
[1751301953142,2.27686326,657.06,656.45,1.07064104]
[1751301953341,2.27686326,657.07,656.46,1.07064104]
[1751301953642,2.27686326,656.98,656.47,1.07064104]
[1751301953841,2.27686326,656.98,656.48,1.07064104]
[1751301954146,2.27686326,656.98,656.49,1.07064104]
[1751301954346,2.27686326,656.98,656.5,1.07064104]
[1751301954647,2.27686326,656.97,656.32,1.833]
[1751301954844,2.27686326,656.97,656.33,1.07043959]
[1751301955045,2.27686326,656.97,656.34,1.07043959]
[1751301955245,2.27686326,656.97,656.35,1.07043959]
[1751301955445,2.27686326,656.97,656.36,1.07043959]
[1751301955639,2.27686326,656.97,656.37,1.07043959]
[1751301955844,2.27686326,656.97,656.38,1.07043959]
[1751301956043,2.27686326,656.97,656.39,1.07043959]
[1751301956242,2.27686326,656.97,656.4,1.07043959]
[1751301956441,2.27686326,656.97,656.41,1.07043959]
[1751301956639,2.27686326,656.97,656.42,1.07043959]
[1751301956845,2.27686326,656.97,656.43,1.07043959]
[1751301957046,2.27686326,656.97,656.44,1.07043959]
[1751301957345,2.27686326,656.97,656.45,1.07043959]
[1751301957545,0.26502574,657.08,656.32,1.833]
[1751301957546,2.27686326,656.96,656.46,1.07043959]
[1751301957844,2.27686326,656.96,656.47,1.07043959]
[1751301958041,2.27686326,656.96,656.32,1.833]
[1751301958042,2.27686326,656.95,656.48,1.07043959]
[1751301958344,2.27686326,656.93,656.49,1.07043959]
[1751301958646,2.27686326,656.93,656.29,1.13918863]
[1751301958942,2.27686326,656.93,656.3,1.07031288]
[1751301959142,2.27686326,656.93,656.31,1.07031288]
[1751301959346,2.27686326,656.93,656.32,1.07031288]
[1751301959645,2.27686326,656.93,656.33,1.07031288]
[1751301959847,2.27686326,656.93,656.34,1.07031288]
[1751301960045,2.27686326,656.93,656.35,1.07031288]
[1751301960245,2.27686326,656.93,656.36,1.07031288]
[1751301960543,2.27686326,656.94,656.37,1.07031288]
[1751301960742,2.27686326,656.94,656.38,1.07031288]
[1751301960946,2.27686326,656.94,656.39,1.07031288]
[1751301961246,2.27686326,656.94,656.4,2.45131288]
[1751301961447,0.26502574,657.08,656.41,1.07031288]
[1751301961644,2.541889,657.08,656.42,1.07031288]
[1751301961844,2.541889,657.08,656.43,1.07031288]
[1751301962049,2.541889,657.08,656.44,1.07031288]
[1751301962248,2.541889,657.08,656.45,1.07031288]
[1751301962448,0.26502574,657.08,656.46,1.07031288]
[1751301962648,0.26502574,657.08,656.47,1.07031288]
[1751301962846,0.26502574,657.08,656.48,1.07031288]
[1751301963047,0.26502574,657.08,656.49,1.07031288]
[1751301963349,2.541889,657.08,656.5,1.07031288]
[1751301963644,2.541889,657.08,656.4,1.381]
[1751301963849,2.541889,657.08,656.41,1.07021829]
[1751301964048,2.541889,657.08,656.42,1.07021829]
[1751301964243,0.26502574,657.08,656.43,1.07021829]
[1751301964445,0.26502574,657.08,656.44,1.07021829]
[1751301964648,0.26502574,657.08,656.45,1.07021829]
[1751301964844,0.26502574,657.08,656.46,1.07021829]
[1751301965048,0.26502574,657.08,656.47,1.07021829]
[1751301965245,0.26502574,657.08,656.48,1.07021829]
[1751301965448,0.26502574,657.08,656.49,1.07021829]
[1751301965647,0.26502574,657.08,656.4,1.381]
[1751301965847,0.26502574,657.08,656.41,1.07021943]
[1751301966048,0.26502574,657.08,656.42,1.07021943]
[1751301966252,0.26502574,657.08,656.43,1.07021943]
[1751301966452,0.26502574,657.08,656.44,1.07021943]
[1751301966751,0.26502574,657.08,656.45,1.07021943]
[1751301966948,0.26502574,657.08,656.46,1.07021943]
[1751301967152,0.26502574,657.08,656.47,1.07021943]
[1751301967353,0.26502574,657.08,656.48,1.07021943]
[1751301967551,0.26502574,657.08,656.49,1.07021943]
[1751301967750,0.26502574,657.08,656.4,1.381]
[1751301967955,0.26502574,657.08,656.41,1.07021738]
[1751301968152,0.26502574,657.08,656.42,1.07021738]
[1751301968355,0.26502574,657.08,656.43,1.07021738]
[1751301968650,0.26502574,657.08,656.44,1.07021738]
[1751301968856,0.26502574,657.08,656.45,1.07021738]
[1751301969056,0.26502574,657.08,656.46,1.07021738]
[1751301969256,0.26502574,657.08,656.47,1.07021738]
[1751301969554,0.26502574,657.08,656.48,1.07021738]
[1751301969755,0.26502574,657.08,656.49,1.07021738]
[1751301969955,0.26502574,657.08,656.5,1.07021738]
[1751301970154,0.26502574,657.08,656.4,1.381]
[1751301970353,0.26502574,657.08,656.41,1.07741806]
[1751301970555,0.26502574,657.08,656.42,1.07741806]
[1751301970758,0.26502574,657.08,656.43,1.07741806]
[1751301970959,0.26502574,657.08,656.44,1.07741806]
[1751301971158,0.26502574,657.08,656.45,1.07741806]
[1751301971354,0.26502574,657.08,656.46,1.07741806]
[1751301971657,0.26502574,657.08,656.47,1.07741806]
[1751301971854,0.26502574,657.08,656.48,1.07741806]
[1751301972058,0.26502574,657.08,656.49,1.07741806]
[1751301972259,0.26502574,657.08,656.5,1.07741806]
[1751301972453,0.26502574,657.08,656.51,1.07741806]
[1751301972655,0.26502574,657.08,656.4,1.381]
[1751301972954,0.26502574,657.08,656.41,1.07692155]
[1751301973155,0.26502574,657.08,656.42,1.07692155]
[1751301973354,0.26502574,657.08,656.43,1.07692155]
[1751301973555,0.26502574,657.08,656.44,1.07692155]
[1751301973753,0.26502574,657.08,656.45,1.07692155]
[1751301973955,0.26502574,657.08,656.46,1.07692155]
[1751301974156,0.26502574,657.08,656.47,1.07692155]
[1751301974356,0.26502574,657.08,656.48,1.07692155]
[1751301974556,0.26502574,657.08,656.49,1.07692155]
[1751301974758,0.26502574,657.08,656.5,1.07692155]
[1751301974958,0.26502574,657.08,656.51,1.07692155]
[1751301975158,0.26502574,657.08,656.52,1.07692155]
[1751301975359,0.26502574,657.08,656.4,1.381]
[1751301975561,0.26502574,657.08,656.41,1.07684024]
[1751301975758,0.26502574,657.08,656.42,1.07684024]
[1751301975961,0.26502574,657.08,656.43,1.07684024]
[1751301976160,0.26502574,657.08,656.44,1.07684024]
[1751301976358,0.26502574,657.08,656.45,1.07684024]
[1751301976563,0.26502574,657.08,656.46,1.07684024]
[1751301976764,0.26502574,657.08,656.47,1.07684024]
[1751301977064,0.26502574,657.08,656.48,1.07684024]
[1751301977260,0.26502574,657.08,656.49,1.07684024]
[1751301977465,0.26502574,657.08,656.5,1.07684024]
[1751301977664,0.26502574,657.08,656.51,1.07684024]
[1751301977962,0.26502574,657.08,656.52,1.07684024]
[1751301978160,0.26502574,657.08,656.53,1.07684024]
[1751301978365,0.26502574,657.08,656.4,1.381]
[1751301978562,0.26502574,657.08,656.41,1.07680977]
[1751301978866,0.26502574,657.08,656.42,1.07680977]
[1751301979066,0.26502574,657.08,656.43,1.07680977]
[1751301979262,0.26502574,657.08,656.44,1.07680977]
[1751301979561,0.26502574,657.08,656.45,1.07680977]
[1751301979761,0.26502574,657.08,656.46,1.07680977]
[1751301979963,0.26502574,657.08,656.47,1.07680977]
[1751301980164,0.26502574,657.08,656.48,1.07680977]
[1751301980369,0.26502574,657.08,656.49,1.07680977]
[1751301980566,0.26502574,657.08,656.5,1.07680977]
[1751301980869,0.26502574,657.08,656.51,1.07680977]
[1751301981069,0.26502574,657.08,656.52,1.07680977]
[1751301981366,0.26502574,657.08,656.53,1.07680977]
[1751301981565,0.26502574,657.08,656.4,1.381]
[1751301981867,0.26502574,657.08,656.41,1.07694796]
[1751301982069,0.26502574,657.08,656.42,1.07694796]
[1751301982366,0.26502574,657.08,656.43,1.07694796]
[1751301982665,0.26502574,657.08,656.4,1.381]
[1751301982666,0.26502574,657.08,656.44,1.07694796]
[1751301982869,0.26502574,657.08,656.45,1.07694796]
[1751301983067,0.26502574,657.08,656.46,1.07694796]
[1751301983269,0.26502574,657.08,656.47,1.07694796]
[1751301983569,0.26502574,657.08,656.48,1.07694796]
[1751301983768,0.26502574,657.08,656.49,1.07694796]
[1751301983964,0.26502574,657.08,656.4,1.381]
[1751301983965,0.26502574,657.08,656.5,1.07694796]
[1751301984170,0.26502574,657.08,656.51,1.07694796]
[1751301984370,0.26502574,657.08,656.52,1.07694796]
[1751301984568,0.26502574,657.08,656.53,1.07694796]
[1751301984769,0.26502574,657.08,656.54,1.07694796]
[1751301984971,0.26502574,657.08,656.4,1.381]
[1751301985169,0.26502574,657.08,656.41,1.07694677]
[1751301985371,0.26502574,657.08,656.42,1.07694677]
[1751301985672,0.26502574,657.08,656.43,1.07694677]
[1751301985868,0.26502574,657.08,656.44,1.07694677]
[1751301986073,0.26502574,657.08,656.45,1.07694677]
[1751301986269,0.26502574,657.08,656.46,1.07694677]
[1751301986473,0.26502574,657.08,656.47,1.07694677]
[1751301986669,0.26502574,657.08,656.48,1.07694677]
[1751301986968,0.26502574,657.08,656.49,1.07694677]
[1751301987171,0.26502574,657.08,656.4,1.381]
[1751301987172,0.26502574,657.08,656.5,1.07694677]
[1751301987375,0.26502574,657.08,656.51,1.07694677]
[1751301987670,0.26502574,657.08,656.52,1.07694677]
[1751301987873,0.26502574,657.08,656.53,1.07694677]
[1751301988074,0.26502574,657.08,656.54,1.07694677]
[1751301988374,0.26502574,657.08,656.55,1.07694677]
[1751301988574,0.26502574,657.08,656.56,1.07694677]
[1751301988772,0.26502574,657.08,656.4,1.381]
[1751301988974,0.26502574,657.08,656.41,1.07640938]
[1751301989171,0.26502574,657.08,656.42,1.07640938]
[1751301989472,0.26502574,657.08,656.43,1.07640938]
[1751301989674,0.26502574,657.08,656.44,1.07640938]
[1751301989878,0.26502574,657.08,656.45,1.07640938]
[1751301990077,0.26502574,657.08,656.46,1.07640938]
[1751301990280,0.26502574,657.08,656.47,1.07640938]
[1751301990577,0.26502574,657.08,656.48,1.07640938]
[1751301990781,0.26502574,657.08,656.49,1.07640938]
[1751301991077,0.26502574,657.08,656.5,1.07640938]
[1751301991281,0.26502574,657.08,656.4,1.381]
[1751301991282,0.26502574,657.08,656.51,1.07640938]
[1751301991482,0.26502574,657.08,656.52,1.07640938]
[1751301991678,0.26502574,657.08,656.53,1.07640938]
[1751301991982,0.26502574,657.08,656.4,1.381]
[1751301992277,0.26502574,657.08,656.41,1.0763227]
[1751301992478,0.26502574,657.08,656.42,1.0763227]
[1751301992678,0.26502574,657.08,656.43,1.0763227]
[1751301992979,0.26502574,657.08,656.44,1.0763227]
[1751301993183,0.26502574,657.08,656.45,1.0763227]
[1751301993382,0.26502574,657.08,656.46,1.0763227]
[1751301993585,0.26502574,657.08,656.47,1.0763227]
[1751301993882,0.26502574,657.08,656.48,1.0763227]
[1751301994084,0.26502574,657.08,656.49,1.0763227]
[1751301994285,0.26502574,657.08,656.4,1.381]
[1751301994286,0.26502574,657.08,656.5,1.0763227]
[1751301994485,0.26502574,657.08,656.51,1.0763227]
[1751301994681,0.26502574,657.08,656.52,1.0763227]
[1751301994882,0.26502574,657.08,656.53,1.0763227]
[1751301995087,0.26502574,657.08,656.4,1.381]
[1751301995281,0.26502574,657.08,656.41,1.07650771]
[1751301995585,0.26502574,657.08,656.42,1.07650771]
[1751301995782,0.26502574,657.08,656.43,1.07650771]
[1751301995986,0.26502574,657.08,656.44,1.07650771]
[1751301996183,0.26502574,657.08,656.45,1.07650771]
[1751301996384,0.26502574,657.08,656.4,1.381]
[1751301996385,0.26502574,657.08,656.46,1.07650771]
[1751301996588,0.26502574,657.08,656.47,1.07650771]
[1751301996888,0.26502574,657.08,656.48,1.07650771]
[1751301997089,0.26502574,657.08,656.49,1.07650771]
[1751301997389,0.26502574,657.08,656.5,1.07650771]
[1751301997589,0.26502574,657.08,656.51,1.07650771]
[1751301997889,0.26502574,657.08,656.52,1.07650771]
[1751301998184,0.26502574,657.08,656.53,1.07650771]
[1751301998383,0.26502574,657.08,656.4,1.381]
[1751301998585,0.26502574,657.08,656.41,1.07658214]
[1751301998787,0.26502574,657.08,656.42,1.07658214]
[1751301998986,0.26502574,657.08,656.43,1.07658214]
[1751301999196,0.26502574,657.08,656.44,1.07658214]
[1751301999385,0.26502574,657.08,656.45,1.07658214]
[1751301999689,0.26502574,657.08,656.46,1.07658214]
[1751301999889,0.26502574,657.08,656.47,1.07658214]
[1751302000086,0.26502574,657.08,656.48,1.07658214]
[1751302000290,0.26502574,657.08,656.49,1.07658214]
[1751302000491,0.26502574,657.08,656.5,1.07658214]
[1751302000791,0.26502574,657.08,656.51,1.07658214]
[1751302000989,0.26502574,657.08,656.52,1.07658214]
[1751302001187,0.26502574,657.08,656.53,1.07658214]
[1751302001391,0.26502574,657.08,656.54,1.07658214]
[1751302001691,0.26502574,657.08,656.55,1.07658214]
[1751302001891,0.26502574,657.08,656.56,1.07658214]
[1751302002088,0.26502574,657.08,656.57,1.07658214]
[1751302002389,0.26502574,657.08,656.57,1.328]
[1751302017205,0.26502574,657.08,656.58,1.0770431]
[1751302017403,0.26502574,657.08,656.57,1.328]
[1751302017708,0.26502574,657.08,656.58,1.07704637]
[1751302018004,0.26502574,657.08,656.57,1.328]
[1751302018206,0.26502574,657.08,656.58,1.07704637]
[1751302018507,0.2649178,657.16,656.57,1.328]
[1751302018706,0.2649178,657.16,656.58,1.07705403]
[1751302018902,0.2649178,657.16,656.57,1.328]
[1751302019106,0.2649178,657.16,656.58,1.07696976]
[1751302019307,0.2649178,657.16,656.59,1.07696976]
[1751302019507,0.2649178,657.16,656.57,1.328]
[1751302019706,0.2649178,657.16,656.58,1.07698872]
[1751302019905,0.2649178,657.16,656.59,1.07698872]
[1751302020104,0.2649178,657.16,656.57,1.328]
[1751302020407,3.79927579,657.85,656.58,1.07699037]
[1751302020609,0.26488756,657.24,656.59,1.07699037]
[1751302020805,0.26488756,657.24,656.6,1.07679168]
[1751302021009,3.79927579,657.9,656.61,1.07679168]
[1751302021210,0.26487949,657.24,656.62,1.07679168]
[1751302021510,3.79927579,657.9,656.63,1.07679168]
[1751302021808,0.26487748,657.24,656.57,1.328]
[1751302022005,3.79927579,657.9,656.58,1.07674916]
[1751302022205,0.26487647,657.59,656.59,1.07674916]
[1751302022406,0.26487647,657.59,656.6,1.07674916]
[1751302022609,0.26487647,657.59,656.57,1.328]
[1751302022610,0.26487647,657.59,656.61,1.07674916]
[1751302022809,0.26487647,657.59,656.62,1.07674916]
[1751302023006,0.26487647,657.59,656.63,1.07674916]
[1751302023210,0.26487647,657.59,656.57,1.328]
[1751302023509,0.26487647,657.59,656.58,1.07664319]
[1751302023707,0.26487647,657.59,656.59,1.07664319]
[1751302023905,0.26487647,657.59,656.6,1.07664319]
[1751302024107,0.26487647,657.59,656.61,1.07664319]
[1751302024311,0.26487647,657.59,656.62,1.07664319]
[1751302024511,0.26487647,657.59,656.63,1.07664319]
[1751302024711,0.26487647,657.59,656.57,1.328]
[1751302024909,0.26487647,657.59,656.58,1.07664613]
[1751302025211,0.26487647,657.59,656.59,1.07664613]
[1751302025411,0.26487647,657.59,656.6,1.07664613]
[1751302025610,0.26487647,657.59,656.61,1.07664613]
[1751302025810,0.26487647,657.59,656.62,1.07664613]
[1751302026010,0.26487647,657.59,656.63,1.07664613]
[1751302026308,0.26487647,657.59,656.57,1.328]
[1751302026510,0.26487647,657.59,656.58,1.07664262]
[1751302026713,0.26487647,657.59,656.59,1.07664262]
[1751302026909,0.26487647,657.59,656.6,1.07664262]
[1751302027113,0.26487647,657.59,656.61,1.07664262]
[1751302027414,0.26487647,657.59,656.62,1.07664262]
[1751302027611,0.26487647,657.59,656.63,1.07664262]
[1751302027815,0.26487647,657.59,656.57,1.328]
[1751302028111,0.26487647,657.59,656.58,1.07665101]
[1751302028311,0.26487647,657.59,656.59,1.07665101]
[1751302028510,0.26487647,657.59,656.6,1.07665101]
[1751302028814,0.26487647,657.59,656.57,1.328]
[1751302029611,3.79927579,657.58,656.57,1.328]
[1751302030113,3.79927579,657.57,656.57,1.328]
[1751302030312,3.79927579,657.57,656.4,1.722]
[1751302030510,3.79927579,657.57,656.41,1.07557982]
[1751302030814,3.79927579,657.56,656.42,1.07557982]
[1751302031011,3.79927579,657.56,656.43,1.07557982]
[1751302031212,3.79927579,657.55,656.44,1.07557982]
[1751302031412,3.79927579,657.55,656.45,1.07557982]
[1751302031611,3.79927579,657.55,656.46,1.07557982]
[1751302031811,3.79927579,657.56,656.47,1.07557982]
[1751302032010,3.79927579,657.56,656.48,1.07557982]
[1751302032215,3.79927579,657.55,656.49,1.07557982]
[1751302032517,3.79927579,657.55,656.5,1.07557982]
[1751302032717,3.79927579,657.47,656.5,2.003]
[1751302033314,0.26487647,657.59,656.51,1.07557561]
[1751302033513,0.26487647,657.59,656.52,1.07557561]
[1751302033717,0.26487647,657.59,656.53,1.07557561]
[1751302033914,0.26487647,657.59,656.54,1.07557561]
[1751302034118,0.26487647,657.59,656.55,1.0754335]
[1751302034318,0.26487647,657.59,656.5,2.003]
[1751302034616,0.26487647,657.59,656.51,1.07538102]
[1751302034918,0.26487647,657.59,656.52,1.07538102]
[1751302035118,0.26487647,657.59,656.53,1.07538102]
[1751302035317,0.26487647,657.59,656.5,2.003]
[1751302035519,0.26487647,657.59,656.51,1.07536337]
[1751302035816,0.26487647,657.59,656.52,1.07536337]
[1751302036019,0.26487647,657.59,656.53,1.07536337]
[1751302036319,0.26487647,657.59,656.5,2.003]
[1751302036619,0.26487647,657.59,656.51,1.07539136]
[1751302036816,0.26487647,657.59,656.52,1.07539136]
[1751302037017,0.26487647,657.59,656.53,1.07539136]
[1751302037319,0.26487647,657.59,656.54,1.07539136]
[1751302037518,0.26487647,657.59,656.55,1.07539136]
[1751302037717,0.26487647,657.59,656.56,1.07539136]
[1751302037915,0.26487647,657.59,656.57,1.07539136]
[1751302038115,0.26487647,657.59,656.58,1.07539136]
[1751302038319,0.26487647,657.59,656.59,1.07539136]
[1751302038517,0.26487647,657.59,656.5,2.003]
[1751302038518,0.26487647,657.59,656.6,1.07539136]
[1751302038716,0.26487647,657.59,656.61,1.07539136]
[1751302039016,0.26487647,657.59,656.62,1.07539136]
[1751302039320,0.26487647,657.59,656.63,1.07539136]
[1751302039520,0.26487647,657.59,656.64,1.07539136]
[1751302039718,0.26487647,657.59,656.65,1.07539136]
[1751302039918,0.26487647,657.59,656.66,1.07539136]
[1751302040117,0.26487647,657.59,656.67,1.07539136]
[1751302040419,0.26487647,657.59,656.68,1.07539136]
[1751302040622,0.26487647,657.59,656.69,1.07539136]
[1751302040822,0.26487647,657.59,656.7,1.07539136]
[1751302041018,0.26487647,657.59,656.71,1.07539136]
[1751302041319,0.26487647,657.59,656.72,1.07539136]
[1751302041520,0.26487647,657.59,656.73,1.07539136]
[1751302041722,0.26487647,657.59,656.74,1.07539136]
[1751302041919,0.26487647,657.59,656.75,1.07539136]
[1751302042120,0.26487647,657.59,656.76,1.07539136]
[1751302042320,0.26487647,657.59,656.77,1.07539136]
[1751302042520,0.26487647,657.59,656.78,1.07539136]
[1751302042824,0.26487647,657.59,656.79,1.07539136]
[1751302043025,0.26487647,657.59,656.8,1.07539136]
[1751302043323,0.26487647,657.59,656.81,1.07539136]
[1751302043521,0.26487647,657.59,656.82,1.07539136]
[1751302043821,0.26487647,657.59,656.83,1.07539136]
[1751302044020,0.26487647,657.59,656.84,1.07539136]
[1751302044225,0.26487647,657.59,656.85,1.07539136]
[1751302044425,0.26487647,657.59,656.86,1.07539136]
[1751302044725,0.26487647,657.59,656.87,1.07539136]
[1751302044922,0.26487647,657.59,656.88,1.07539136]
[1751302045121,0.26487647,657.59,656.89,1.07539136]
[1751302045321,0.26487647,657.59,656.9,1.07539136]
[1751302045524,0.26487647,657.59,656.75,1.964]
[1751302045722,0.26487647,657.59,656.76,1.06908824]
[1751302046022,0.26487647,657.59,656.77,1.06908824]
[1751302046221,0.26487647,657.59,656.78,1.06908824]
[1751302046423,0.26487647,657.59,656.79,1.06908824]
[1751302046627,0.26487647,657.59,656.8,1.06908824]
[1751302046826,0.26487647,657.59,656.81,1.06908824]
[1751302047025,0.26487647,657.59,656.82,1.06908824]
[1751302047222,0.26487647,657.59,656.83,1.06908824]
[1751302047424,0.26487647,657.59,656.84,1.06908824]
[1751302047728,0.26487647,657.59,656.85,1.06908824]
[1751302047927,0.26487647,657.59,656.86,1.06908824]
[1751302048227,0.26487647,657.59,656.87,1.06908824]
[1751302048429,0.26487647,657.59,656.88,1.06908824]
[1751302048625,0.26487647,657.59,656.89,1.06908824]
[1751302048825,0.26487647,657.59,656.9,1.06908824]
[1751302049026,0.26487647,657.59,656.91,1.06908824]
[1751302049227,0.26487647,657.59,656.75,1.964]
[1751302049435,0.26487647,657.59,656.76,1.0679875]
[1751302049630,0.26487647,657.59,656.77,1.0679875]
[1751302049925,0.26487647,657.59,656.78,1.0679875]
[1751302050129,0.26487647,657.59,656.79,1.0679875]
[1751302050327,0.26487647,657.59,656.8,1.0679875]
[1751302050532,0.26487647,657.59,656.81,1.0679875]
[1751302050729,0.26487647,657.59,656.82,1.0679875]
[1751302050925,0.26487647,657.59,656.83,1.0679875]
[1751302051130,0.26487647,657.59,656.84,1.0679875]
[1751302051330,0.26487647,657.59,656.85,1.0679875]
[1751302051531,0.26487647,657.59,656.86,1.0679875]
[1751302051825,0.26487647,657.59,656.87,1.0679875]
[1751302052031,0.26487647,657.59,656.88,1.0679875]
[1751302052231,0.26487647,657.59,656.89,1.0679875]
[1751302052432,0.26487647,657.59,656.9,1.0679875]
[1751302052639,0.26487647,657.59,656.91,1.0679875]
[1751302052927,0.26487647,657.59,656.75,1.964]
[1751302053131,0.26487647,657.59,656.76,1.06730367]
[1751302053333,0.26487647,657.59,656.77,1.06730367]
[1751302053634,0.26487647,657.59,656.78,1.06730367]
[1751302053829,3.79927579,658.74,656.79,1.06730367]
[1751302054033,3.79927579,658.82,656.8,1.06730367]
[1751302054230,0.2646881,657.68,656.81,1.06730367]
[1751302054438,3.79927579,658.82,656.82,1.06730367]
[1751302054633,0.26466092,657.76,656.83,1.06730367]
[1751302054829,0.26466092,657.76,656.84,1.06730367]
[1751302055135,3.79927579,658.85,656.85,1.06730367]
[1751302055329,0.26468005,657.7,656.86,1.06730367]
[1751302055530,3.79927579,658.85,656.87,1.06730367]
[1751302055734,0.26466495,657.7,656.88,1.06730367]
[1751302055931,0.26466495,657.7,656.89,1.06730367]
[1751302056134,3.79927579,658.85,656.9,1.06730367]
[1751302056335,0.26467703,657.63,656.91,1.06730367]
[1751302056535,3.79927579,658.85,656.75,1.964]
[1751302056733,0.26467803,657.61,656.76,1.06674473]
[1751302056937,0.26467803,657.61,656.77,1.06674473]
[1751302057133,3.79927579,658.31,656.78,1.06674473]
[1751302057328,0.26471125,657.61,656.79,1.06674473]
[1751302057529,3.79927579,658.31,656.8,1.06674473]
[1751302057831,0.26474448,657.61,656.81,1.06674473]
[1751302058031,3.79927579,658.4,656.82,1.06674473]
[1751302058330,0.26465891,657.98,656.83,1.06674473]
[1751302058534,0.26465891,657.98,656.84,1.06674473]
[1751302058731,0.26465891,657.98,656.85,1.06674473]
[1751302058935,0.26465891,657.98,656.86,1.06674473]
[1751302059136,0.26465891,657.98,656.87,1.06674473]
[1751302059336,0.26465891,657.98,656.88,1.06674473]
[1751302059535,0.26465891,657.98,656.89,1.06674473]
[1751302059737,0.26465891,657.98,656.9,1.06674473]
[1751302060036,0.26465891,657.98,656.91,1.06674473]
[1751302060234,0.26465891,657.98,656.92,1.06674473]
[1751302060437,0.26465891,657.98,656.93,1.06674473]
[1751302060633,0.26465891,657.98,656.94,1.06674473]
[1751302060934,0.26465891,657.98,656.95,1.06674473]
[1751302061133,0.26465891,657.98,656.96,1.06674473]
[1751302061333,3.79927579,658.88,656.97,1.06674473]
[1751302061538,0.26459653,658.01,656.98,1.06674473]
[1751302061738,3.79927579,658.88,656.99,1.06674473]
[1751302062035,0.26458748,658.01,657.0,1.06674473]
[1751302062238,3.79927579,658.88,657.01,1.06674473]
[1751302062438,12.1576825,660.66,657.02,1.06674473]
[1751302062439,3.79927579,659.01,657.02,1.06674473]
[1751302062636,3.79927579,659.01,657.03,1.06674473]
[1751302062836,3.79927579,659.01,657.04,1.06674473]
[1751302063036,3.79927579,658.93,657.05,1.06674473]
[1751302063239,3.79927579,658.93,656.75,1.964]
[1751302063436,0.26458144,658.47,656.76,1.06488556]
[1751302063737,0.26458144,658.47,656.77,1.06488556]
[1751302063941,0.26458144,658.47,656.78,1.06488556]
[1751302064142,0.26458144,658.47,656.79,1.06488556]
[1751302064340,0.26458144,658.47,656.8,1.06488556]
[1751302064544,0.26458144,658.47,656.75,1.964]
[1751302064545,0.26458144,658.47,656.81,1.06488556]
[1751302064841,0.26458144,658.47,656.82,1.06488556]
[1751302065045,0.26458144,658.47,656.83,1.06488556]
[1751302065241,0.26458144,658.47,656.84,1.06488556]
[1751302065443,0.26458144,658.47,656.85,1.06488556]
[1751302065641,0.26458144,658.47,656.86,1.06488556]
[1751302065844,0.26458144,658.47,656.87,1.06488556]
[1751302066042,0.26458144,658.47,656.9,1.13918863]
[1751302066245,0.26458144,658.47,657.04,1.13918863]
[1751302066444,0.26458144,658.47,657.05,2.20407419]